bitfinex/quotes_SOLUSD_20250818
["timestamp","ask_amount","ask_price","bid_price","bid_amount"]
[1755476673249,1.304896,190.87,190.82,5.24054082]
[1755476673403,15.10621557,190.86,190.83,0.68]
[1755476673844,15.10621557,190.88,190.83,0.68]
[1755476674146,15.16621557,190.86,190.83,0.68]
[1755476674347,0.06,190.86,190.84,5.23999161]
[1755476674555,15.16621557,190.86,190.84,5.23999161]
[1755476674766,15.10621557,190.84,190.81,26.03]
[1755476675218,0.65,190.83,190.81,26.03]
[1755476675622,15.10621557,190.82,190.81,0.03]
[1755476675844,15.75621557,190.82,190.81,0.03]
[1755476676717,0.65,190.84,190.81,0.03]
[1755476676936,15.10621557,190.82,190.81,0.03]
[1755476677433,15.10621557,190.85,190.81,0.03]
[1755476677748,15.10621557,190.84,190.81,0.03]
[1755476678540,0.65,190.84,190.81,0.03]
[1755476678717,0.65,190.83,190.81,0.03]
[1755476678922,15.75621557,190.82,190.81,0.03]
[1755476680011,20.99675639,190.82,190.81,0.03]
[1755476680205,16.41125142,190.82,190.81,0.03]
[1755476680611,21.65179224,190.82,190.81,0.03]
[1755476680942,25.12018189,190.82,190.81,0.03]
[1755476681127,19.87964107,190.82,190.81,0.03]
[1755476681742,25.12018189,190.82,190.81,0.03]
[1755476682444,21.65179224,190.82,190.81,0.03]
[1755476683747,25.11503607,190.82,190.81,0.03]
[1755476684944,19.87449525,190.82,190.81,0.03]
[1755476685240,58.07449525,190.82,190.81,0.03]
[1755476686032,63.31503607,190.82,190.81,0.03]
[1755476686414,59.85179224,190.82,190.81,0.03]
[1755476687521,63.30975461,190.82,190.81,0.03]
[1755476688330,59.85179224,190.82,190.81,0.03]
[1755476688930,85.85179224,190.82,190.81,0.03]
[1755476692759,85.91179224,190.82,190.81,0.03]
[1755476694134,89.36722304,190.82,190.81,0.03]
[1755476694743,93.20587568,190.82,190.81,0.03]
[1755476695259,95.30644068,190.82,190.81,0.03]
[1755476696161,93.20587568,190.82,190.81,0.03]
[1755476699061,41.10621557,190.8,190.79,0.03]
[1755476699263,87.25533486,190.8,190.79,0.03]
[1755476699462,92.496425,190.8,190.79,0.03]
[1755476699640,93.216425,190.8,190.79,0.03]
[1755476700266,54.296425,190.8,190.79,0.03]
[1755476700466,54.296425,190.8,190.79,0.75]
[1755476700467,15.76125142,190.8,190.79,0.75]
[1755476700672,53.30621557,190.8,190.79,0.75]
[1755476701561,53.30621557,190.8,190.79,0.03]
[1755476701867,61.33403172,190.8,190.79,0.03]
[1755476702065,61.33379389,190.8,190.79,0.03]
[1755476702266,60.61379389,190.8,190.79,0.03]
[1755476702455,65.85488403,190.8,190.79,0.03]
[1755476703371,66.57488403,190.8,190.79,0.03]
[1755476703675,65.85488403,190.8,190.79,0.03]
[1755476703870,22.41379389,190.8,190.79,0.75]
[1755476704044,61.24882974,190.8,190.79,0.75]
[1755476704250,19.22315609,190.8,190.79,0.75]
[1755476704452,15.10621557,190.8,190.79,0.75]
[1755476704865,38.24,190.82,190.79,0.75]
[1755476705285,15.16621557,190.82,190.79,0.75]
[1755476705695,0.06,190.82,190.8,5.24109014]
[1755476705851,0.06,190.84,190.81,27.24408154]
[1755476706046,0.06,190.86,190.81,27.24408154]
[1755476706254,0.06,190.86,190.83,26.0]
[1755476706552,0.06,190.91,190.83,26.52402662]
[1755476706759,0.06,190.91,190.87,26.0]
[1755476706960,0.06,190.94,190.87,26.5239168]
[1755476707251,1e-08,190.97,190.88,0.72]
[1755476707579,0.1,191.02,190.91,26.0]
[1755476707790,0.1,191.02,190.95,26.0]
[1755476708275,0.75438174,191.02,190.96,0.72]
[1755476708464,0.1,191.02,190.96,0.72]
[1755476709749,0.65441599,191.01,190.96,0.72]
[1755476709946,0.65441599,191.01,190.97,26.72]
[1755476710146,15.76063156,191.01,190.97,0.72]
[1755476710970,15.76063156,191.01,190.94,26.0]
[1755476711168,53.26621557,191.0,190.94,0.72]
[1755476711389,15.10621557,190.98,190.94,0.72]
[1755476711561,15.10621557,190.96,190.94,0.72]
[1755476711880,20.3424133,190.98,190.94,0.72]
[1755476712066,15.10621557,190.96,190.94,0.72]
[1755476712256,15.10621557,190.96,190.83,13.10065495]
[1755476712257,15.10621557,190.94,190.91,0.72]
[1755476712570,15.10621557,190.92,190.89,0.72]
[1755476712878,15.10621557,190.94,190.89,0.72]
[1755476713072,15.10621557,190.92,190.86,0.72]
[1755476713256,15.10621557,190.94,190.86,0.72]
[1755476713455,15.10621557,190.92,190.86,0.72]
[1755476714083,15.10621557,190.94,190.86,0.72]
[1755476714282,15.10621557,190.92,190.86,0.72]
[1755476714485,15.10621557,190.92,190.86,5.95942804]
[1755476714664,15.10621557,190.92,190.87,0.72]
[1755476714869,15.10621557,190.92,190.88,0.67]
[1755476715070,15.10621557,190.94,190.89,0.67]
[1755476715389,15.10621557,190.93,190.9,0.67]
[1755476715572,15.10621557,190.93,190.91,0.67]
[1755476716902,15.10621557,190.93,190.92,0.67]
[1755476717259,15.10621557,190.93,190.89,0.67]
[1755476717788,15.10621557,190.93,190.9,0.67]
[1755476717976,15.10621557,190.93,190.91,0.67]
[1755476719099,15.10621557,190.93,190.89,0.67]
[1755476719478,15.10621557,190.93,190.88,5.23887957]
[1755476719676,15.10621557,190.93,190.9,0.67]
[1755476719900,15.10621557,190.93,190.87,0.67]
[1755476720087,15.10621557,190.93,190.88,0.67]
[1755476720399,38.14,190.94,190.89,5.9086191]
[1755476720615,38.14,190.94,190.9,0.67]
[1755476721580,38.14,190.94,190.87,0.67]
[1755476721581,16.47090577,190.93,190.87,0.67]
[1755476721770,16.47090577,190.93,190.86,26.0]
[1755476722099,0.71,190.92,190.83,5.94000061]
[1755476722293,15.10621557,190.9,190.83,5.94000061]
[1755476724179,15.10621557,190.9,190.86,26.0]
[1755476724504,15.76100865,190.9,190.86,26.0]
[1755476725298,15.10621557,190.9,190.86,26.0]
[1755476725872,15.10621557,190.9,190.85,31.23954985]
[1755476726272,15.81621557,190.9,190.85,31.90954985]
[1755476727795,15.10621557,190.88,190.83,0.03]
[1755476728002,15.10621557,190.88,190.83,5.27018402]
[1755476728293,15.81621557,190.88,190.83,5.27018402]
[1755476728492,15.81621557,190.88,190.83,5.94018402]
[1755476728893,15.81621557,190.88,190.83,31.94018402]
[1755476730085,15.76094006,190.92,190.84,0.67]
[1755476730990,15.10621557,190.94,190.86,26.0]
[1755476731187,15.76087148,190.94,190.86,26.0]
[1755476731490,39.48462162,190.95,190.9,26.0]
[1755476731682,38.12,190.95,190.91,0.67]
[1755476731883,38.83,190.95,190.9,26.0]
[1755476732107,0.71,190.94,190.9,26.0]
[1755476732280,38.12,190.95,190.91,0.67]
[1755476732482,0.65465591,190.94,190.9,26.0]
[1755476732712,0.71,190.94,190.9,26.0]
[1755476733613,0.71,190.94,190.9,31.23813009]
[1755476733812,0.71,190.94,190.9,5.23813009]
[1755476734015,1.36465591,190.94,190.9,5.23813009]
[1755476734386,15.76087148,190.94,190.9,5.23813009]
[1755476734591,15.81621557,190.93,190.89,26.0]
[1755476734787,1.36472449,190.92,190.86,5.23944252]
[1755476734997,1.36472449,190.92,190.84,38.12]
[1755476734998,15.81621557,190.91,190.84,5.23999161]
[1755476735313,15.10621557,190.89,190.84,5.23999161]
[1755476735514,15.10621557,190.89,190.86,0.03]
[1755476735825,0.65486169,190.88,190.86,0.03]
[1755476736045,1.36486169,190.88,190.86,0.03]
[1755476736202,0.71,190.87,190.86,0.03]
[1755476736722,15.81621557,190.87,190.86,0.03]
[1755476736924,16.47111157,190.87,190.86,0.03]
[1755476737802,15.10621557,190.87,190.86,0.03]
[1755476738893,15.81621557,190.87,190.86,0.03]
[1755476739710,16.47111157,190.87,190.86,0.03]
[1755476739908,15.81621557,190.87,190.86,0.03]
[1755476740121,15.10621557,190.87,190.86,0.03]
[1755476740507,15.81621557,190.87,190.86,0.03]
[1755476740905,16.47111157,190.87,190.86,0.03]
[1755476741796,15.81621557,190.87,190.86,0.03]
[1755476742513,15.10621557,190.87,190.86,0.03]
[1755476742830,15.10621557,190.91,190.86,0.7]
[1755476743001,53.22621557,190.91,190.86,0.03]
[1755476743193,53.22621557,190.91,190.87,0.67]
[1755476743823,15.10621557,190.93,190.88,0.67]
[1755476744032,0.71,190.95,190.88,0.67]
[1755476744335,38.12,190.94,190.88,0.67]
[1755476744500,15.76090577,190.93,190.88,31.90878524]
[1755476744699,16.47090577,190.93,190.88,31.90878524]
[1755476745141,15.10621557,190.93,190.89,0.72]
[1755476745422,15.10621557,190.93,190.88,31.23878524]
[1755476745423,38.12,190.94,190.9,0.72]
[1755476745742,15.81621557,190.93,190.88,26.0]
[1755476745897,1.36472449,190.92,190.86,0.03]
[1755476746102,15.10621557,190.91,190.86,0.03]
[1755476746301,15.10621557,190.89,190.86,0.03]
[1755476746528,38.81,190.9,190.86,0.03]
[1755476746832,39.46479308,190.9,190.86,0.03]
[1755476748340,38.1,190.9,190.86,0.03]
[1755476748634,38.1,190.9,190.86,0.75]
[1755476749513,38.1,190.9,190.87,5.23916802]
[1755476749943,38.1,190.9,190.87,5.95916802]
[1755476750106,38.1,190.9,190.88,0.72]
[1755476750429,38.1,190.94,190.89,0.72]
[1755476750628,19.29437691,190.93,190.87,5.23916802]
[1755476750850,15.10621557,190.91,190.87,5.23916802]
[1755476751006,15.10621557,190.91,190.86,5.26938274]
[1755476751007,1.36479308,190.9,190.86,5.26938274]
[1755476751335,0.71,190.89,190.86,5.26938274]
[1755476751539,38.75479308,190.9,190.86,0.03]
[1755476751835,0.71,190.88,190.86,0.03]
[1755476752339,0.71,190.89,190.86,0.03]
[1755476753736,0.71,190.88,190.86,0.03]
[1755476753942,1.36486169,190.88,190.86,0.03]
[1755476754116,15.10621557,190.87,190.86,0.03]
[1755476754316,15.81621557,190.87,190.86,0.03]
[1755476755526,38.1,190.87,190.86,0.03]
[1755476756140,38.1,190.9,190.86,0.75]
[1755476756330,38.1,190.9,190.86,0.03]
[1755476756529,38.81,190.9,190.86,0.03]
[1755476756931,38.1,190.9,190.86,0.75]
[1755476757247,38.1,190.9,190.87,5.23916802]
[1755476757740,38.81,190.9,190.87,5.23916802]
[1755476757953,0.71,190.89,190.87,5.23916802]
[1755476759124,0.71,190.89,190.86,0.03]
[1755476759320,38.1,190.9,190.86,0.03]
[1755476759538,0.71,190.88,190.86,0.03]
[1755476760049,0.71,190.89,190.86,0.03]
[1755476760263,15.10621557,190.88,190.86,0.03]
[1755476760567,54.55111157,190.87,190.86,0.03]
[1755476762442,63.27611196,190.87,190.86,0.03]
[1755476762642,63.27611196,190.87,190.84,0.03]
[1755476762643,15.10621557,190.86,190.84,0.03]
[1755476762851,15.10621557,190.84,190.81,0.03]
[1755476763051,15.10621557,190.82,190.81,0.03]
[1755476763357,27.70541978,190.82,190.81,0.03]
[1755476763549,28.41541978,190.82,190.81,0.03]
[1755476763753,28.41049422,190.82,190.81,0.03]
[1755476764262,24.54258876,190.82,190.81,0.03]
[1755476765855,19.30204794,190.82,190.81,0.03]
[1755476766029,53.89621557,190.82,190.81,0.03]
[1755476768144,54.55125142,190.82,190.81,0.03]
[1755476769030,53.18621557,190.82,190.81,0.03]
[1755476769252,15.10621557,190.84,190.81,0.03]
[1755476769460,53.18621557,190.82,190.81,0.03]
[1755476769861,53.89621557,190.82,190.81,0.03]
[1755476770941,54.55125142,190.82,190.81,0.03]
[1755476775142,53.89621557,190.82,190.81,0.03]
[1755476775350,54.55125142,190.82,190.81,0.03]
[1755476776285,53.84125142,190.82,190.81,0.03]
[1755476776461,53.18621557,190.82,190.81,0.03]
[1755476777454,53.84621557,190.82,190.81,0.03]
[1755476777865,54.50125142,190.82,190.81,0.03]
[1755476778069,59.74179224,190.82,190.81,0.03]
[1755476778672,63.20931058,190.82,190.81,0.03]
[1755476779779,89.20931058,190.82,190.81,0.03]
[1755476783290,15.76125142,190.82,190.81,0.03]
[1755476783589,53.84125142,190.82,190.81,0.03]
[1755476783783,59.08179224,190.82,190.81,0.03]
[1755476783969,53.84125142,190.82,190.81,0.03]
[1755476784282,59.74179224,190.82,190.81,0.03]
[1755476784586,59.08179224,190.82,190.81,0.03]
[1755476784756,59.74179224,190.82,190.81,0.03]
[1755476785081,63.20411195,190.82,190.81,0.03]
[1755476785868,59.74179224,190.82,190.81,0.03]
[1755476786819,59.08179224,190.82,190.81,0.03]
[1755476786991,59.74179224,190.82,190.81,0.03]
[1755476787387,15.76125142,190.82,190.81,0.03]
[1755476787608,53.18621557,190.82,190.81,0.75]
[1755476790019,53.18621557,190.82,190.81,0.03]
[1755476790592,53.84125142,190.82,190.81,0.03]
[1755476791609,53.18621557,190.82,190.81,0.03]
[1755476793505,59.74179224,190.82,190.81,0.03]
[1755476794239,67.05451716,190.82,190.81,0.03]
[1755476794807,63.20579321,190.82,190.81,0.03]
[1755476795415,67.05708168,190.82,190.81,0.03]
[1755476795732,15.10621557,190.75,190.73,1e-08]
[1755476795891,61.13654086,190.74,190.73,1e-08]
[1755476796094,61.79654086,190.74,190.73,1e-08]
[1755476797136,67.03927966,190.74,190.73,1e-08]
[1755476798237,41.10621557,190.72,190.71,1e-08]
[1755476798519,87.13654086,190.72,190.71,1e-08]
[1755476798699,87.79654086,190.72,190.71,1e-08]
[1755476799099,93.03982945,190.72,190.71,1e-08]
[1755476800036,93.03125765,190.72,190.71,1e-08]
[1755476800532,93.02994518,190.72,190.71,1e-08]
[1755476800836,95.12870673,190.72,190.71,1e-08]
[1755476801046,95.12884262,190.72,190.71,1e-08]
[1755476802565,147.60621557,190.71,190.69,1e-08]
[1755476802768,41.10621557,190.67,190.66,1e-08]
[1755476802953,86.48885018,190.67,190.66,1e-08]
[1755476803336,87.80388603,190.67,190.66,1e-08]
[1755476803659,87.79998797,190.67,190.66,1e-08]
[1755476804258,93.04465152,190.67,190.66,1e-08]
[1755476804467,41.10621557,190.64,190.63,0.2]
[1755476804632,87.13998797,190.64,190.63,0.2]
[1755476804846,87.78998797,190.64,190.63,0.2]
[1755476805233,87.13998797,190.64,190.63,0.2]
[1755476806261,93.03547684,190.64,190.63,0.2]
[1755476806568,93.02698014,190.64,190.63,0.2]
[1755476807076,93.02698014,190.64,190.63,1e-08]
[1755476807638,95.12942114,190.64,190.63,1e-08]
[1755476809567,95.12582757,190.64,190.63,1e-08]
[1755476809866,95.12430719,190.64,190.63,1e-08]
[1755476810845,56.39430719,190.64,190.63,1e-08]
[1755476811038,94.47430719,190.64,190.63,1e-08]
[1755476811576,94.47430719,190.64,190.63,0.71000001]
[1755476811736,87.18918129,190.64,190.63,1e-08]
[1755476811935,85.08674029,190.64,190.63,1e-08]
[1755476812759,88.90364685,190.64,190.63,1e-08]
[1755476813246,85.08674029,190.64,190.63,1e-08]
[1755476813448,85.08674029,190.64,190.63,0.71000001]
[1755476813654,59.08674029,190.64,190.63,0.71000001]
[1755476814647,59.08674029,190.64,190.63,1e-08]
[1755476815469,62.90186086,190.64,190.63,1e-08]
[1755476815775,59.08674029,190.64,190.63,1e-08]
[1755476817877,59.73674029,190.64,190.63,1e-08]
[1755476818085,53.84125142,190.64,190.63,0.71000001]
[1755476818289,15.76125142,190.64,190.63,0.71000001]
[1755476818492,53.84125142,190.64,190.63,0.71000001]
[1755476819858,53.18621557,190.64,190.63,5.95576405]
[1755476820062,15.10621557,190.65,190.63,5.95576405]
[1755476820389,8.80683344,190.66,190.64,0.71]
[1755476821455,0.06,190.68,190.65,5.24521374]
[1755476821657,0.06,190.68,190.66,0.71]
[1755476822568,0.06,190.68,190.67,26.0]
[1755476822760,1e-08,190.68,190.67,26.0]
[1755476822962,1e-08,190.68,190.67,26.71]
[1755476823592,1e-08,190.68,190.67,5.95466355]
[1755476823800,38.08,190.77,190.7,26.0]
[1755476823993,38.08,190.77,190.71,0.71]
[1755476824193,15.10621557,190.77,190.71,0.71]
[1755476825800,15.10621557,190.75,190.71,5.95352171]
[1755476826005,15.10621557,190.75,190.72,0.71]
[1755476826189,15.10621557,190.75,190.71,5.24352171]
[1755476826190,15.76125142,190.75,190.71,0.71]
[1755476826376,15.76125142,190.75,190.72,0.71]
[1755476826580,15.76125142,190.75,190.73,0.71]
[1755476826777,15.76125142,190.75,190.7,31.243809]
[1755476826981,15.76125142,190.75,190.71,0.71]
[1755476827181,15.76125142,190.75,190.72,0.71]
[1755476827592,0.06,190.74,190.72,0.71]
[1755476828517,0.06,190.74,190.73,0.71]
[1755476828888,0.06,190.74,190.72,0.71]
[1755476830134,0.06,190.74,190.73,0.71]
[1755476831410,0.06,190.74,190.73,5.95301368]
[1755476832331,0.06,190.74,190.73,0.71]
[1755476832531,0.06,190.74,190.7,26.71]
[1755476832907,0.06,190.74,190.71,0.71]
[1755476833833,0.06,190.74,190.72,0.71]
[1755476835115,0.06,190.74,190.72,5.9532248]
[1755476835325,0.06,190.74,190.72,5.2432248]
[1755476835530,0.06,190.74,190.72,5.9632248]
[1755476835698,0.06,190.74,190.72,0.72]
[1755476836629,0.74,190.74,190.71,5.2435195]
[1755476837130,0.06,190.74,190.71,5.2435195]
[1755476837299,0.06,190.74,190.71,5.9635195]
[1755476837503,0.06,190.74,190.72,0.72]
[1755476837904,0.06,190.74,190.71,5.2435195]
[1755476838104,0.06,190.74,190.71,5.9635195]
[1755476838304,0.06,190.74,190.72,0.72]
[1755476838747,0.06,190.74,190.73,0.72]
[1755476839628,0.06,190.74,190.68,26.0]
[1755476839840,0.65503585,190.73,190.69,5.96411348]
[1755476840035,1.39503585,190.74,190.69,5.96411348]
[1755476840230,1.39503585,190.74,190.69,0.72]
[1755476840231,15.10621557,190.72,190.69,0.72]
[1755476840436,0.65503585,190.71,190.67,0.72]
[1755476840739,0.65503585,190.71,190.68,0.72]
[1755476840909,15.10621557,190.72,190.69,0.72]
[1755476840910,15.76125142,190.72,190.69,0.72]
[1755476841544,15.76125142,190.72,190.67,31.96446527]
[1755476841741,15.76125142,190.72,190.68,0.72]
[1755476841936,15.76125142,190.72,190.69,0.72]
[1755476842136,15.66125142,190.72,190.69,0.72]
[1755476842332,0.68,190.71,190.67,31.24446527]
[1755476842524,15.66125142,190.72,190.67,31.96446527]
[1755476842846,16.34125142,190.72,190.67,31.96446527]
[1755476843540,16.34125142,190.72,190.68,0.72]
[1755476843737,15.66125142,190.72,190.68,5.2442976]
[1755476844045,16.34125142,190.72,190.68,0.72]
[1755476844424,15.10621557,190.7,190.67,0.03]
[1755476844635,15.10621557,190.68,190.67,0.03]
[1755476845031,15.78621557,190.68,190.67,0.03]
[1755476845746,21.03060407,190.68,190.67,0.03]
[1755476847148,15.10621557,190.68,190.67,0.03]
[1755476847313,15.78621557,190.68,190.67,0.03]
[1755476848645,15.10621557,190.68,190.67,0.03]
[1755476848853,38.69503585,190.69,190.67,0.03]
[1755476849149,38.04,190.69,190.67,5.99454771]
[1755476849343,38.04,190.69,190.67,5.27454771]
[1755476849547,38.04,190.69,190.68,0.72]
[1755476849731,38.04,190.71,190.68,0.72]
[1755476849930,38.04,190.73,190.68,0.72]
[1755476851127,0.06,190.74,190.69,5.24411348]
[1755476851315,0.06,190.74,190.7,0.72]
[1755476851517,0.06,190.74,190.71,0.72]
[1755476852152,0.06,190.74,190.72,0.72]
[1755476853244,0.06,190.74,190.72,5.96328244]
[1755476853437,0.06,190.74,190.73,0.72]
[1755476854856,0.06,190.74,190.73,5.96301368]
[1755476855159,0.06,190.74,190.73,31.96301368]
[1755476855637,0.06,190.74,190.73,31.24301368]
[1755476856080,0.74,190.74,190.67,26.28315026]
[1755476856227,0.74,190.74,190.7,26.0]
[1755476856433,0.74,190.74,190.71,26.0]
[1755476856669,0.68,190.73,190.71,26.0]
[1755476856965,0.74,190.74,190.71,26.0]
[1755476858555,0.74,190.74,190.7,5.24368521]
[1755476858730,0.74,190.74,190.69,5.24408524]
[1755476858932,1.39503585,190.74,190.69,5.96408524]
[1755476859231,0.68,190.73,190.69,5.24408524]
[1755476859432,0.71503585,190.74,190.68,5.24435417]
[1755476859648,0.06,190.74,190.7,0.72]
[1755476859971,0.06,190.74,190.71,26.0]
[1755476860169,0.06,190.74,190.72,0.72]
[1755476861142,0.06,190.74,190.73,5.24301368]
[1755476861562,0.06,190.74,190.73,5.96301368]
[1755476865895,0.75,190.74,190.7,20.99474982]
[1755476866062,0.69,190.73,190.7,20.99474982]
[1755476866453,0.69,190.73,190.7,5.24382382]
[1755476867183,15.16621557,190.74,190.7,5.95382382]
[1755476867379,0.75,190.74,190.7,5.95382382]
[1755476867688,0.75,190.74,190.7,5.24382382]
[1755476868481,0.75,190.74,190.7,5.95382382]
[1755476868867,0.75,190.74,190.7,5.24382382]
[1755476869185,0.06,190.74,190.7,5.95382382]
[1755476869793,15.16621557,190.74,190.7,5.95382382]
[1755476870086,15.82125142,190.74,190.7,5.95382382]
[1755476870291,16.51125142,190.74,190.7,0.71]
[1755476870787,16.51125142,190.74,190.69,5.24410075]
[1755476870966,0.65503585,190.73,190.69,5.24410075]
[1755476871169,0.65503585,190.73,190.69,5.95410075]
[1755476871962,0.65503585,190.73,190.7,0.71]
[1755476874705,15.79621557,190.72,190.68,0.03]
[1755476874989,1.34503585,190.71,190.68,0.03]
[1755476875361,0.69,190.7,190.68,0.03]
[1755476875695,15.76125142,190.69,190.68,0.03]
[1755476876287,16.45125142,190.69,190.68,0.03]
[1755476878570,15.76125142,190.69,190.68,0.03]
[1755476879075,16.45125142,190.69,190.68,0.03]
[1755476879968,15.76125142,190.69,190.68,0.03]
[1755476880175,0.65503585,190.72,190.68,26.74]
[1755476880380,0.06,190.74,190.69,0.71]
[1755476880681,0.06,190.74,190.68,28.130454]
[1755476880883,0.06,190.74,190.68,26.74]
[1755476881273,15.16621557,190.74,190.68,26.74]
[1755476881476,1.34503585,190.73,190.68,26.74]
[1755476882076,0.65503585,190.73,190.69,5.24411348]
[1755476882284,0.65503585,190.73,190.7,0.71]
[1755476882980,0.06,190.74,190.69,5.24411348]
[1755476883180,0.06,190.74,190.71,0.71]
[1755476883611,0.06,190.74,190.72,0.71]
[1755476883826,0.06,190.74,190.69,18.35439718]
[1755476883992,0.06,190.74,190.7,0.71]
[1755476884180,0.06,190.74,190.71,5.24356352]
[1755476884381,0.06,190.74,190.71,5.95356352]
[1755476885303,15.10621557,190.72,190.69,5.24411348]
[1755476885517,15.79621557,190.72,190.69,5.24411348]
[1755476885680,15.79621557,190.72,190.68,31.27432703]
[1755476885881,15.79621557,190.72,190.68,5.27432703]
[1755476886093,1.34503585,190.71,190.68,0.03]
[1755476888091,0.65503585,190.71,190.68,0.03]
[1755476888289,15.79621557,190.7,190.68,0.03]
[1755476888490,15.76125142,190.69,190.68,0.03]
[1755476888699,16.45125142,190.69,190.68,0.03]
[1755476890522,21.6953649,190.69,190.68,0.03]
[1755476891491,25.15931178,190.69,190.68,0.03]
[1755476893294,29.0059843,190.69,190.68,0.03]
[1755476893495,66.9859843,190.69,190.68,0.03]
[1755476894342,57.8951983,190.69,190.68,0.03]
[1755476894495,63.13931178,190.69,190.68,0.03]
[1755476897810,59.6753649,190.69,190.68,0.03]
[1755476898820,63.13292473,190.69,190.68,0.03]
[1755476900040,66.97439307,190.69,190.68,0.03]
[1755476900645,15.10621557,190.68,190.67,1e-08]
[1755476900819,22.40524374,190.68,190.67,1e-08]
[1755476901023,23.09524374,190.68,190.67,1e-08]
[1755476901422,25.19746474,190.68,190.67,1e-08]
[1755476902124,28.33963224,190.68,190.67,1e-08]
[1755476902535,24.4981639,190.68,190.67,1e-08]
[1755476902826,28.33686223,190.68,190.67,1e-08]
[1755476903047,30.43908223,190.68,190.67,1e-08]
[1755476908549,30.43908223,190.68,190.63,1e-08]
[1755476908550,41.10621557,190.64,190.63,1e-08]
[1755476908859,83.19881125,190.64,190.63,1e-08]
[1755476909050,87.72248596,190.64,190.63,1e-08]
[1755476909425,25.10621557,190.63,190.62,1e-08]
[1755476909659,33.08656978,190.63,190.62,1e-08]
[1755476910350,38.33233382,190.63,190.62,1e-08]
[1755476910558,28.33233382,190.63,190.62,1e-08]
[1755476910867,61.78953944,190.63,190.62,1e-08]
[1755476911061,68.41447804,190.63,190.62,1e-08]
[1755476913965,78.41447804,190.63,190.62,1e-08]
[1755476915339,68.41447804,190.63,190.62,1e-08]
[1755476916078,78.41447804,190.63,190.62,1e-08]
[1755476916444,67.72447804,190.63,190.62,1e-08]
[1755476916645,68.41447804,190.63,190.62,1e-08]
[1755476916967,78.41447804,190.63,190.62,1e-08]
[1755476917356,68.41447804,190.63,190.62,1e-08]
[1755476918053,64.58220244,190.63,190.62,1e-08]
[1755476918257,67.72300905,190.63,190.62,1e-08]
[1755476918447,68.41300905,190.63,190.62,1e-08]
[1755476919688,24.49724501,190.63,190.62,0.71000001]
[1755476919852,53.06621557,190.63,190.62,0.71000001]
[1755476920248,53.72125142,190.63,190.62,0.71000001]
[1755476920483,58.96701546,190.63,190.62,0.71000001]
[1755476920663,62.41490555,190.63,190.62,0.71000001]
[1755476920872,63.10490555,190.63,190.62,1e-08]
[1755476921057,66.24548198,190.63,190.62,1e-08]
[1755476921423,62.41490555,190.63,190.62,1e-08]
[1755476921550,66.24545333,190.63,190.62,1e-08]
[1755476922254,62.41490555,190.63,190.62,1e-08]
[1755476922670,66.24540406,190.63,190.62,1e-08]
[1755476922861,66.93540406,190.63,190.62,1e-08]
[1755476923582,66.24540406,190.63,190.62,1e-08]
[1755476923960,83.16914151,190.63,190.62,0.71000001]
[1755476924156,84.96701546,190.63,190.62,0.71000001]
[1755476924875,79.72125142,190.63,190.62,0.71000001]
[1755476925085,217.46701546,190.63,190.62,0.71000001]
[1755476925261,220.26033397,190.63,190.62,0.71000001]
[1755476925457,220.26033397,190.63,190.62,1e-08]
[1755476926759,220.32033397,190.63,190.62,1e-08]
[1755476926963,87.82033397,190.63,190.62,1e-08]
[1755476927162,92.35268948,190.63,190.62,1e-08]
[1755476927362,89.17536982,190.63,190.62,1e-08]
[1755476927564,93.00846,190.63,190.62,1e-08]